bitfinex/quotes_ETHUSD_20251119
["timestamp","ask_amount","ask_price","bid_price","bid_amount"]
[1763559389436,0.5091683,3083.9,3082.8,0.4548]
[1763559389608,0.7057683,3083.9,3082.8,0.4548]
[1763559389809,0.5091683,3083.9,3083.8,0.1293]
[1763559390009,0.5091683,3083.9,3083.8,0.5841]
[1763559390208,0.1966,3084.9,3083.8,0.5841]
[1763559390449,0.1966,3084.9,3083.9,0.4548]
[1763559391113,0.4718,3084.8,3083.4,0.5841]
[1763559391418,0.1966,3085.1,3083.7,6.39429844]
[1763559391608,0.1966,3085.1,3083.8,1.54642248]
[1763559391815,0.1966,3085.1,3083.8,2.04182248]
[1763559392012,0.1966,3085.1,3083.9,0.4954]
[1763559392611,0.1966,3085.1,3083.8,0.63942984]
[1763559392612,0.888104,3085.0,3083.8,0.63942984]
[1763559392814,0.888104,3085.0,3083.4,0.1293]
[1763559393016,0.1966,3085.1,3083.4,0.1293]
[1763559393017,0.405504,3084.8,3083.4,0.1293]
[1763559393252,0.405504,3084.8,3083.1,0.1293]
[1763559393546,0.405504,3084.4,3083.1,0.1293]
[1763559393914,0.405504,3084.2,3083.1,0.1293]
[1763559394312,0.405504,3084.0,3082.7,0.004]
[1763559394847,0.4826,3083.7,3082.7,0.004]
[1763559396029,0.1947,3083.9,3082.7,0.4994]
[1763559396321,0.4826,3083.8,3082.7,0.4994]
[1763559396630,0.1947,3082.8,3082.7,0.004]
[1763559396847,0.600204,3082.8,3082.7,0.004]
[1763559397861,1.078404,3082.8,3082.7,0.004]
[1763559398128,0.405504,3082.8,3082.7,0.004]
[1763559398398,0.883704,3082.8,3082.7,0.004]
[1763559398554,0.405504,3082.8,3082.7,0.004]
[1763559398980,0.883704,3082.8,3082.7,0.004]
[1763559400182,0.883704,3082.8,3082.3,0.0326]
[1763559400398,0.883704,3082.7,3082.3,0.0326]
[1763559400681,0.405504,3082.8,3082.3,0.0326]
[1763559400983,0.4782,3083.1,3082.3,0.0326]
[1763559401310,0.68356167,3083.6,3082.3,0.5258]
[1763559401573,0.4782,3084.1,3082.4,0.90699264]
[1763559401870,0.4782,3084.1,3082.5,1.6492769]
[1763559402042,0.98725619,3084.5,3082.5,1.6492769]
[1763559402241,0.98725619,3084.5,3082.6,0.4932]
[1763559402471,0.98725619,3084.5,3083.0,0.90699264]
[1763559402687,0.50905619,3084.5,3083.0,0.90699264]
[1763559402851,0.6729,3084.9,3083.1,1.39831971]
[1763559403039,0.4782,3084.8,3083.1,1.39831971]
[1763559403241,0.68430019,3084.8,3083.5,6.85120443]
[1763559403451,0.002,3085.0,3083.6,0.90699264]
[1763559403660,0.002,3085.0,3083.6,1.40019264]
[1763559403852,0.002,3085.0,3083.7,1.31833971]
[1763559404144,0.002,3085.0,3084.1,6.85120443]
[1763559404586,0.002,3085.0,3084.2,0.6281]
[1763559404874,0.002,3085.0,3084.2,0.5781]
[1763559405079,0.002,3085.0,3084.3,0.90699264]
[1763559405265,0.002,3085.0,3084.8,0.90699264]
[1763559406761,0.002,3085.0,3084.9,0.4932]
[1763559407087,0.002,3085.4,3085.1,0.90699264]
[1763559407396,0.002,3085.4,3085.2,0.4932]
[1763559407599,0.002,3085.8,3085.3,7.75819707]
[1763559407897,0.002,3085.8,3085.4,2.22533235]
[1763559408271,0.002,3085.8,3085.5,0.4932]
[1763559409085,0.002,3085.8,3085.6,6.85120443]
[1763559409266,0.002,3085.8,3085.7,0.90699264]
[1763559409466,0.002,3085.8,3085.7,1.40019264]
[1763559409765,0.002,3085.8,3085.7,2.54941916]
[1763559410165,0.002,3086.2,3085.7,2.54941916]
[1763559410396,0.002,3086.2,3086.1,0.0945]
[1763559410792,0.002,3086.2,3086.1,0.5877]
[1763559411091,0.002,3086.2,3086.1,1.49469264]
[1763559411260,0.002,3086.2,3086.1,1.96819926]
[1763559411467,0.4802,3086.2,3085.7,1.14922652]
[1763559411700,0.4802,3086.2,3085.1,0.90699264]
[1763559411900,0.002,3086.2,3085.2,0.0945]
[1763559412068,0.002,3086.2,3085.7,0.90699264]
[1763559412399,0.002,3086.2,3085.8,0.4932]
[1763559413265,0.002,3086.2,3086.0,0.90699264]
[1763559413467,0.002,3086.2,3085.6,6.85120443]
[1763559413468,0.002,3086.2,3085.3,0.90699264]
[1763559414171,0.002,3086.2,3085.3,1.40019264]
[1763559414562,0.002,3086.2,3085.3,0.90699264]
[1763559414986,0.002,3086.2,3085.3,0.93940439]
[1763559415300,0.002,3086.2,3085.3,0.90699264]
[1763559415500,0.002,3086.2,3085.4,0.78526971]
[1763559416000,0.4782,3086.1,3085.4,0.78526971]
[1763559416304,0.1972,3085.5,3084.6,6.85120443]
[1763559416508,0.1972,3086.0,3085.3,0.0945]
[1763559416678,0.002,3086.2,3085.4,0.0324107]
[1763559416877,0.002,3086.2,3085.6,0.001]
[1763559417077,0.002,3086.2,3085.8,6.85120443]
[1763559417397,0.002,3086.2,3086.1,0.90699264]
[1763559417707,0.002,3086.2,3086.1,3.403]
[1763559417867,0.002,3086.2,3086.1,0.03240335]
[1763559418067,0.002,3086.2,3086.1,0.52560335]
[1763559418384,0.002,3086.2,3086.1,0.4932]
[1763559418711,0.002,3086.2,3086.1,1.34983971]
[1763559419486,0.002,3086.2,3086.1,2.25683235]
[1763559419663,0.002,3086.2,3086.1,1.34983971]
[1763559419867,0.0012,3086.2,3086.1,4.64052833]
[1763559420104,0.0012,3086.2,3086.1,1.40019264]
[1763559420614,0.0012,3086.2,3086.1,0.90699264]
[1763559420820,0.0012,3086.2,3085.9,0.68512044]
[1763559420984,0.0012,3086.2,3085.9,1.59211308]
[1763559421397,0.1972,3085.7,3085.3,0.001]
[1763559421716,0.405504,3085.6,3085.3,0.001]
[1763559422019,0.1972,3085.7,3085.3,0.001]
[1763559422224,0.405504,3085.5,3085.3,0.001]
[1763559422524,0.405504,3085.3,3083.6,0.1359]
[1763559422718,0.405504,3085.3,3083.7,6.85120443]
[1763559422900,0.405504,3085.1,3084.1,0.1359]
[1763559423072,0.4782,3085.2,3084.1,0.1359]
[1763559423275,0.4782,3085.1,3084.1,0.1359]
[1763559423503,0.883704,3085.6,3084.1,0.6291]
[1763559423687,0.1972,3085.7,3084.4,1.40019264]
[1763559423888,0.0012,3086.2,3085.1,0.0945]
[1763559424223,0.0012,3086.2,3085.1,1.28237044]
[1763559424423,0.0012,3086.2,3085.2,0.4932]
[1763559425505,0.0012,3086.2,3085.3,0.90699264]
[1763559425818,0.405504,3086.0,3085.1,0.69467044]
[1763559426027,0.1972,3085.3,3085.0,0.001]
[1763559426478,0.4782,3085.2,3085.0,0.001]
[1763559428700,0.405504,3085.1,3085.0,0.001]
[1763559429200,0.859104,3085.1,3085.0,0.001]
[1763559431112,1.36803053,3085.1,3085.0,0.001]
[1763559432014,0.50892653,3085.1,3085.0,0.001]
[1763559432801,0.1914,3085.7,3085.0,0.001]
[1763559433013,0.1914,3085.7,3085.1,0.0945]
[1763559433482,0.1914,3085.7,3085.2,0.69467044]
[1763559433881,0.0012,3086.2,3085.6,6.85120443]
[1763559434889,0.002,3085.8,3085.5,6.37976186]
[1763559435089,0.002,3085.8,3085.6,0.90699264]
[1763559436187,0.002,3085.8,3085.6,4.14784823]
[1763559436387,0.002,3085.8,3085.7,1.51176101]
[1763559436606,0.0012,3086.2,3085.7,1.51176101]
[1763559436810,0.002,3086.5,3086.1,6.23625428]
[1763559437323,0.002,3086.9,3086.2,1.36599264]
[1763559437522,0.002,3086.9,3086.8,6.23625428]
[1763559437824,0.002,3086.9,3086.8,6.85987971]
[1763559438496,0.002,3086.9,3086.8,7.31887971]
[1763559438698,0.002,3086.9,3086.8,6.85987971]
[1763559439125,0.002,3086.9,3086.8,7.31887971]
[1763559439419,0.002,3086.9,3086.8,8.22587235]
[1763559439638,0.002,3086.9,3086.8,7.76687235]
[1763559439927,0.51047438,3086.9,3086.8,7.76687235]
[1763559440216,0.002,3086.9,3086.8,7.76687235]
[1763559440387,0.002,3086.9,3086.8,6.23625428]
[1763559440806,0.002,3087.9,3086.8,6.23625428]
[1763559440807,0.002,3087.9,3086.9,0.90699264]
[1763559440988,0.002,3087.9,3087.4,6.23625428]
[1763559441199,0.002,3087.9,3087.5,1.49859264]
[1763559442017,0.647,3087.9,3087.5,0.90699264]
[1763559442329,0.002,3087.9,3087.5,1.62131733]
[1763559442493,0.1934,3087.9,3087.5,0.71432469]
[1763559442687,0.1934,3087.9,3086.9,0.90699264]
[1763559442986,0.647,3087.9,3086.9,0.90699264]
[1763559443600,0.002,3087.9,3087.8,6.23625428]
[1763559443922,0.1934,3087.9,3087.3,6.23625428]
[1763559444235,0.1934,3087.9,3087.3,6.85987971]
[1763559444800,0.1934,3087.9,3087.3,0.62362543]
[1763559445004,0.1926,3087.9,3086.8,4.14659352]
[1763559445231,0.1926,3087.9,3086.9,0.90699264]
[1763559445232,0.6437,3087.9,3086.9,0.90699264]
[1763559446026,0.4511,3087.8,3086.9,0.90699264]
[1763559446630,0.1926,3087.9,3086.9,4.14648857]
[1763559446830,0.0012,3087.9,3087.8,0.4787]
[1763559447016,0.0012,3087.9,3087.5,0.90699264]
[1763559447216,0.0012,3087.9,3087.8,0.4787]
[1763559447394,0.0012,3087.9,3087.8,0.8032]
[1763559447594,0.0012,3087.9,3087.8,0.933]
[1763559447899,0.0012,3087.9,3087.8,4.62424435]
[1763559448292,0.0012,3087.9,3087.8,1.38569264]
[1763559448501,0.0012,3087.9,3087.8,1.5908165]
[1763559449027,0.0012,3087.9,3087.8,1.1121165]
[1763559449236,0.6475,3087.9,3086.5,0.7788]
[1763559449397,0.6475,3087.9,3086.5,5.74846646]
[1763559449398,0.405504,3087.8,3086.5,5.74846646]
[1763559449733,0.4511,3087.7,3086.5,5.74846646]
[1763559449919,0.4511,3087.7,3086.6,0.57484665]
[1763559450241,0.4511,3087.7,3086.6,1.48183929]
[1763559450444,0.50847873,3087.5,3086.6,0.57484665]
[1763559450934,0.50847873,3087.5,3086.6,1.48183929]
[1763559451152,0.50847873,3087.5,3086.7,0.4543]
[1763559451449,0.50847873,3087.5,3087.1,0.90699264]
[1763559452143,0.4511,3087.4,3086.8,0.19361393]
[1763559452351,0.4511,3087.4,3086.3,0.1326]
[1763559452352,0.1952,3086.9,3086.3,0.1326]
[1763559452547,0.1952,3086.9,3086.0,5.74846646]
[1763559452857,0.4511,3086.8,3086.1,0.1326]
[1763559453055,0.4511,3086.8,3086.5,0.001]
[1763559453411,0.51047873,3087.5,3086.5,0.4553]
[1763559453744,0.96157873,3087.5,3086.6,0.90699264]
[1763559453908,0.96157873,3087.5,3086.7,0.66564591]
[1763559454453,0.1952,3086.8,3086.5,0.90799264]
[1763559454606,0.4511,3087.4,3086.5,0.90799264]
[1763559455077,0.4511,3087.4,3086.5,0.001]
[1763559455216,0.1952,3086.6,3086.5,0.001]
[1763559455720,0.4511,3086.6,3086.5,0.001]
[1763559456676,0.856604,3086.6,3086.5,0.001]
[1763559457921,0.1952,3086.7,3086.5,0.001]
[1763559458120,0.6911,3086.7,3086.5,0.001]
[1763559458995,0.4959,3087.2,3086.5,0.001]
[1763559459481,1.00637873,3087.5,3086.5,0.001]
[1763559460042,0.4959,3087.4,3086.5,0.001]
[1763559462482,0.4959,3087.4,3086.5,0.03339915]
[1763559463275,0.4959,3087.4,3086.5,0.001]
[1763559463583,0.002,3087.5,3086.5,0.001]
[1763559464082,0.002,3087.5,3086.5,0.03339915]
[1763559464380,0.4979,3087.5,3086.5,0.001]
[1763559466884,0.4979,3087.5,3086.5,0.90799264]
[1763559467080,0.4979,3087.5,3086.6,0.7468076]
[1763559467306,0.002,3087.5,3086.6,0.7144095]
[1763559467605,0.002,3087.5,3087.0,0.90699264]
[1763559468994,0.002,3087.5,3087.1,0.4681]
[1763559469200,0.002,3087.5,3087.0,0.90699264]
[1763559469399,0.002,3087.5,3087.1,0.7143095]
[1763559469573,0.0012,3087.5,3087.1,0.7143095]
[1763559471873,0.0012,3087.5,3087.1,1.1824095]
[1763559472322,0.0012,3087.5,3087.1,0.7143095]
[1763559472999,0.0012,3087.5,3087.2,0.4681]
[1763559473311,0.0012,3087.5,3087.4,7.62669495]
[1763559473568,0.0012,3087.5,3087.4,8.52687371]
[1763559474266,0.0012,3087.5,3087.4,8.99497371]
[1763559474613,0.0012,3087.5,3087.4,8.52687371]
[1763559475052,0.0012,3087.5,3087.4,12.23394501]
[1763559475343,0.0012,3087.5,3087.4,8.99497371]
[1763559476750,0.0012,3087.5,3087.4,8.08798107]
[1763559476962,0.0012,3087.9,3087.4,8.08798107]
[1763559477274,0.002,3088.2,3087.8,0.4836]
[1763559477476,0.002,3088.2,3088.1,0.90699264]
[1763559477639,0.002,3088.2,3088.1,4.32799264]
[1763559477844,0.002,3088.2,3088.1,0.90699264]
[1763559478163,0.51027831,3088.2,3088.1,0.90699264]
[1763559478358,0.51027831,3088.2,3088.1,1.62130214]
[1763559478766,0.51027831,3088.2,3088.1,1.73650214]
[1763559478941,0.51027831,3088.2,3088.1,1.62130214]
[1763559479138,0.51027831,3088.2,3088.1,2.22010214]
[1763559479353,0.002,3088.6,3088.2,0.9517]
[1763559479570,0.002,3088.6,3088.3,0.26882021]
[1763559479771,0.002,3088.6,3088.5,6.71970231]
[1763559479973,0.4959,3089.3,3088.5,7.62669495]
[1763559480187,0.4959,3089.3,3088.6,0.90699264]
[1763559480340,0.4959,3089.3,3088.1,0.7143095]
[1763559480678,0.6925,3088.2,3087.4,6.23610231]
[1763559480863,0.6925,3088.2,3087.5,0.90699264]
[1763559481192,0.1925,3088.2,3087.5,0.90699264]
[1763559481346,0.5,3087.6,3087.4,6.23610231]
[1763559481672,0.2859,3087.5,3086.9,6.23610231]
[1763559481887,0.1925,3088.2,3087.0,1.53060287]
[1763559482042,0.405504,3088.0,3087.0,1.53060287]
[1763559482442,0.4959,3087.9,3087.0,1.53060287]
[1763559482667,0.4959,3087.9,3087.1,0.1152]
[1763559482945,0.4959,3087.9,3087.0,1.53060287]
[1763559483150,0.4959,3087.9,3087.1,0.77667052]
[1763559483974,0.4959,3087.9,3087.1,0.89187052]
[1763559485368,0.4959,3087.9,3087.1,0.92426338]
[1763559485575,0.1925,3088.2,3087.4,6.23610231]
[1763559485787,0.1925,3088.6,3087.5,1.4074813]
[1763559486015,0.1925,3088.6,3087.6,0.76435836]
[1763559486394,0.6884,3088.6,3087.6,0.76435836]
[1763559487493,0.6884,3088.6,3087.7,0.3245]
[1763559487647,0.6884,3088.6,3087.7,3.421]
[1763559487996,0.6884,3088.6,3087.6,0.76435836]
[1763559487997,0.4665,3087.8,3087.6,0.76435836]
[1763559488152,0.4665,3087.8,3087.5,0.90699264]
[1763559488352,0.405504,3088.4,3087.5,0.90699264]
[1763559488659,0.405504,3088.5,3087.5,0.90699264]
[1763559488868,0.4972,3088.3,3087.5,0.90699264]
[1763559489256,0.4972,3088.3,3087.1,0.89187052]
[1763559489257,0.002,3087.9,3087.1,0.89187052]
[1763559489554,0.002,3087.9,3087.2,0.17998632]
[1763559489967,0.002,3087.9,3087.2,1.08697896]
[1763559490177,0.002,3087.9,3087.2,1.53987896]
[1763559490484,0.002,3087.9,3087.8,0.4538]
[1763559490656,0.002,3087.9,3087.8,0.91375168]
[1763559490989,0.50835055,3088.2,3087.9,0.90699264]
[1763559491187,0.002,3088.6,3088.2,0.4538]
[1763559491480,0.002,3088.6,3088.5,0.4538]
[1763559491789,0.69140368,3090.1,3088.5,0.4538]
[1763559491996,0.01174702,3090.3,3088.5,0.4538]
[1763559491997,0.01174702,3090.3,3090.0,6.23610231]
[1763559492150,0.01174702,3090.3,3090.2,0.5864]
[1763559492600,0.01174702,3090.3,3090.1,0.90699264]
[1763559493022,0.01174702,3090.3,3090.2,0.4538]
[1763559493207,0.01174702,3090.3,3090.2,0.9067]
[1763559493408,0.01174702,3090.3,3090.2,1.25877949]
[1763559494007,0.01174702,3090.3,3090.2,0.80497949]
[1763559494209,0.01174702,3090.3,3090.1,0.90699264]
[1763559494744,0.01094702,3090.3,3090.2,0.9067]
[1763559495498,0.002,3090.8,3090.2,0.9067]
[1763559495843,0.002,3090.8,3090.7,7.14309495]
[1763559496432,0.46887938,3091.3,3090.8,0.90699264]
[1763559496658,0.1948,3091.5,3090.8,0.90699264]
[1763559496859,0.1948,3091.5,3090.3,7.26601812]
[1763559497059,0.1948,3091.5,3090.4,1.0612973]
[1763559497971,0.405504,3091.4,3090.4,1.0612973]
[1763559498155,0.405504,3091.4,3089.7,0.1326]
[1763559498156,0.1948,3090.5,3089.7,0.1326]
[1763559498355,0.405504,3091.4,3089.8,1.35989264]
[1763559498535,0.50785746,3091.0,3089.8,1.35989264]
[1763559498735,0.50785746,3091.0,3089.9,1.37989776]
[1763559498964,0.1948,3090.9,3089.9,0.47290512]
[1763559499671,0.4972,3090.8,3090.0,0.90699264]
[1763559499877,0.4972,3090.8,3089.8,0.90699264]
[1763559500038,0.4972,3090.8,3089.8,1.35989264]
[1763559500238,0.4972,3090.8,3089.9,0.79655141]
[1763559500438,0.1948,3090.9,3090.0,0.03236245]
[1763559500658,0.1948,3090.9,3090.0,0.93935509]
[1763559500974,0.1948,3090.9,3089.9,4.14334333]
[1763559501167,0.1948,3090.9,3090.0,0.4529]
[1763559501472,0.1948,3090.9,3090.2,0.90699264]
[1763559502165,1.00505746,3091.0,3090.2,0.90699264]
[1763559502166,0.50785746,3091.0,3090.2,0.90699264]
[1763559502469,0.1948,3090.9,3090.2,0.90699264]
[1763559502873,0.1948,3090.9,3090.1,10.05479075]
[1763559503040,0.1948,3090.9,3090.2,0.90699264]
[1763559503234,0.692,3090.9,3090.2,0.90699264]
[1763559503661,0.692,3090.9,3090.1,0.45962433]
[1763559504375,0.1948,3090.9,3089.9,0.90699264]
[1763559504539,0.4773,3090.8,3089.9,0.90699264]
[1763559505235,0.4773,3090.8,3089.5,0.1609]
[1763559505441,0.405504,3090.7,3089.2,9.59608216]
[1763559505676,0.405504,3090.5,3089.3,0.90699264]
[1763559505881,0.405504,3090.5,3089.4,1.05030748]
[1763559506076,0.1948,3090.9,3089.4,1.05030748]
[1763559506077,0.4773,3090.4,3089.4,1.05030748]
[1763559506262,0.4773,3090.4,3089.3,0.90699264]
[1763559506675,0.405504,3090.3,3089.3,0.90699264]
[1763559507082,0.4773,3090.2,3089.3,0.90699264]
[1763559508991,0.4773,3090.2,3089.3,0.001]
[1763559508992,0.6596,3089.4,3089.3,0.001]
[1763559509345,1.1369,3089.4,3089.3,0.001]
[1763559510575,0.6596,3089.4,3089.3,0.001]
[1763559510775,0.1973,3089.7,3089.3,0.001]
[1763559510943,0.4773,3090.8,3089.3,0.4724]
[1763559511168,0.1973,3089.9,3089.3,0.4724]
[1763559511572,0.1973,3089.9,3089.4,0.03236874]
[1763559511979,0.6746,3089.9,3089.3,0.001]
[1763559513022,0.6746,3089.9,3089.3,0.3380733]
[1763559513315,0.6746,3089.9,3089.3,0.001]
[1763559514069,0.4623,3089.4,3089.3,0.001]
[1763559514469,0.9396,3089.4,3089.3,0.001]
[1763559515675,0.4623,3089.4,3089.3,0.001]
[1763559515876,0.9396,3089.4,3089.3,0.001]
[1763559516678,1.345104,3089.4,3089.3,0.001]
[1763559516873,0.4623,3089.4,3089.3,0.001]
[1763559517111,0.9396,3089.4,3089.3,0.001]
[1763559518111,0.4623,3089.4,3089.3,0.001]
[1763559518406,0.4804,3089.8,3089.3,0.001]
[1763559519510,0.4796,3089.8,3089.3,0.001]
[1763559520009,0.4647,3089.4,3089.3,0.001]
[1763559520621,0.870204,3089.4,3089.3,0.001]
[1763559521510,0.9451,3089.4,3089.3,0.001]
[1763559522818,0.4647,3089.4,3089.3,0.001]
[1763559523031,0.1973,3089.9,3089.3,0.001]
[1763559523032,0.1973,3089.9,3089.3,0.4562]
[1763559523204,0.4804,3090.4,3089.3,0.9226]
[1763559523383,0.4804,3090.4,3089.4,0.03236874]
[1763559523793,0.4804,3090.4,3089.3,0.4674]
[1763559524915,0.4804,3090.4,3089.3,1.37439264]
[1763559525115,0.50802132,3090.2,3089.4,1.40050829]
[1763559525425,0.50802132,3090.2,3089.5,0.4664]
[1763559525626,0.50802132,3090.2,3090.1,0.4552]
[1763559526231,0.50802132,3090.2,3090.1,0.9216]
[1763559526415,0.50802132,3090.2,3090.1,0.4552]
[1763559527228,0.50802132,3090.2,3089.8,0.3247]
[1763559527419,0.50802132,3090.2,3089.5,0.90699264]
[1763559527622,0.50802132,3090.2,3089.7,0.90699264]
[1763559528031,0.50802132,3090.2,3089.7,1.37339264]
[1763559528421,0.50802132,3090.2,3089.7,0.4664]
[1763559528662,0.50802132,3090.2,3089.6,0.7727165]
[1763559528941,0.50802132,3090.2,3090.1,0.4552]
[1763559529138,0.50802132,3090.2,3089.7,1.37339264]
[1763559529330,0.50802132,3090.2,3089.8,0.53827695]
[1763559529928,0.50802132,3090.2,3089.6,0.7727165]
[1763559530313,0.98842132,3090.2,3089.6,0.7727165]
[1763559530810,0.50802132,3090.2,3089.6,0.7727165]
[1763559531118,0.50802132,3090.2,3089.6,1.67970914]
[1763559531513,0.50802132,3090.2,3089.6,0.7727165]
[1763559531738,0.50802132,3090.2,3089.7,0.21461091]
[1763559533150,0.50802132,3090.2,3089.7,0.68101091]
[1763559533335,0.50802132,3090.2,3089.8,0.90699264]
[1763559533543,0.50802132,3090.2,3089.7,1.58800355]
[1763559534563,0.50502132,3090.2,3090.1,0.4552]
[1763559535126,0.1948,3090.9,3090.1,0.4552]
[1763559535459,0.4804,3090.8,3089.8,3.23645085]
[1763559535626,0.4804,3090.8,3089.9,0.34510618]
[1763559535825,0.4804,3090.8,3089.7,0.21461091]
[1763559536050,0.4804,3090.8,3089.8,0.90699264]
[1763559537162,0.405504,3090.7,3089.7,0.21461091]
[1763559537385,0.4804,3090.8,3089.6,0.90699264]
[1763559537563,0.4804,3090.7,3089.6,0.90699264]
[1763559538264,0.4804,3090.7,3089.3,0.3257]
[1763559538265,0.6572,3089.7,3089.3,0.001]
[1763559538463,0.868304,3089.4,3089.3,0.001]
[1763559538667,0.868304,3089.4,3088.6,0.001]
[1763559538980,0.3013,3089.0,3088.6,0.001]
[1763559539483,1.187204,3089.0,3088.6,0.001]
[1763559539762,0.405504,3088.9,3088.6,0.001]
[1763559540065,1.058204,3088.7,3088.6,0.001]
[1763559540431,1.538604,3088.7,3088.6,0.001]
[1763559542745,0.405504,3088.6,3087.0,0.001]
[1763559542945,0.405504,3087.8,3087.0,0.001]
[1763559543187,0.4647,3087.1,3087.0,0.001]
[1763559543984,0.4804,3088.3,3087.0,0.9226]
[1763559544279,0.405504,3088.2,3087.9,0.001]
[1763559544587,0.1925,3089.0,3087.9,0.001]
[1763559544588,0.4804,3088.1,3087.9,0.001]
[1763559544928,0.4647,3088.0,3087.9,0.001]
[1763559545070,0.4804,3088.6,3087.9,0.001]
[1763559545283,0.4647,3088.0,3087.9,0.001]
[1763559545649,0.9451,3088.0,3087.0,0.001]
[1763559545844,0.3009,3087.1,3087.0,0.001]
[1763559546051,0.4804,3087.9,3087.1,0.1182]
[1763559546261,0.68707069,3088.8,3087.1,0.1182]
[1763559546458,0.4804,3088.6,3087.1,0.1182]
[1763559546683,0.405504,3088.5,3087.1,0.1182]
[1763559547099,0.4804,3088.4,3087.1,0.1182]
[1763559547396,0.4804,3088.4,3087.1,1.49159264]
[1763559547583,0.4804,3088.4,3087.2,0.47319746]
[1763559547790,0.4804,3088.4,3087.0,0.90799264]
[1763559547791,0.4719,3087.2,3087.0,0.001]
[1763559548097,0.7494,3087.1,3087.0,0.001]
[1763559548598,0.405504,3087.5,3087.0,0.001]
[1763559548828,1.54429752,3089.0,3087.0,0.001]
[1763559548829,0.4719,3087.1,3087.0,0.001]
[1763559549728,0.4557,3087.3,3087.0,0.001]
[1763559550031,0.877404,3087.1,3087.0,0.001]
[1763559550387,1.333104,3087.1,3087.0,0.001]
[1763559551830,1.84164515,3087.1,3087.0,0.001]
[1763559552189,0.91404515,3087.1,3087.0,0.001]
[1763559552458,1.38594515,3087.1,3087.0,0.001]
[1763559553293,1.84164515,3087.1,3087.0,0.001]
[1763559553621,1.99341577,3087.1,3087.0,0.001]
[1763559554522,0.405504,3087.0,3086.4,0.001]
[1763559554829,0.405504,3086.5,3083.9,0.1182]
[1763559555030,0.405504,3085.8,3083.9,0.6]
[1763559555327,0.405504,3085.6,3084.3,0.9424149]
[1763559555530,0.405504,3085.6,3084.3,0.003]
[1763559555821,0.1814,3085.9,3084.3,0.003]
[1763559555822,0.877404,3085.1,3084.3,0.003]
[1763559556034,0.405504,3085.0,3084.3,0.003]
[1763559556254,0.935404,3084.4,3084.3,0.003]
[1763559556626,1.391104,3084.4,3084.3,0.003]
[1763559560225,0.405504,3084.3,3082.8,0.1385]
[1763559560436,0.405504,3084.1,3082.8,0.1385]
[1763559560839,0.405504,3083.9,3082.8,0.1385]
[1763559561265,0.6371,3083.8,3082.8,0.1385]
[1763559561469,0.405504,3084.1,3082.9,0.4818]
[1763559561948,0.405504,3084.0,3083.9,0.001]
[1763559562349,1.333104,3084.0,3083.9,0.001]
[1763559565061,1.84217806,3084.0,3083.9,0.001]
[1763559565271,1.38647806,3084.0,3083.9,0.001]
[1763559566033,0.50907406,3084.0,3083.9,0.4601]
[1763559567075,0.50907406,3084.0,3083.9,0.001]
[1763559567568,0.50907406,3084.0,3083.9,0.4601]
[1763559567872,0.50907406,3084.0,3083.9,5.09213993]
[1763559568070,0.4978,3085.6,3083.9,5.95805556]
[1763559568367,0.4978,3086.0,3084.3,0.90699264]
[1763559568568,0.4978,3086.0,3084.4,0.6122]
[1763559569051,0.4978,3086.4,3084.5,0.4824]
[1763559569370,0.4978,3086.4,3084.8,0.90699264]
[1763559569564,0.497,3086.4,3084.9,1.19821004]
[1763559569731,0.405504,3086.3,3084.9,1.19821004]
[1763559569938,0.497,3086.4,3085.0,0.4824]
[1763559570135,0.1992,3085.0,3084.3,0.1306]
[1763559570342,0.1992,3085.0,3083.9,0.83448916]
[1763559570343,0.405504,3084.9,3083.9,0.001]
[1763559571662,0.405504,3084.9,3084.0,0.4824]
[1763559571865,0.1992,3085.3,3084.0,0.4824]
[1763559572086,0.405504,3085.2,3084.1,0.1306]
[1763559572451,0.405504,3085.2,3084.1,0.613]
[1763559573293,0.1992,3085.9,3085.1,0.5976]
[1763559573742,0.4978,3085.8,3084.9,0.1385]
[1763559574339,0.405504,3085.7,3084.9,0.1385]
[1763559574791,0.405504,3085.8,3084.9,0.1385]
[1763559574945,0.405504,3085.5,3084.1,0.1306]
[1763559575146,0.405504,3085.6,3084.2,0.4824]
[1763559575706,0.405504,3085.5,3084.2,0.4824]
[1763559575983,0.1992,3085.9,3084.3,9.52575682]
[1763559576140,0.405504,3085.8,3084.4,2.48090759]
[1763559576658,0.405504,3085.8,3084.5,0.4824]
[1763559577349,0.1992,3085.9,3084.5,0.51482016]
[1763559577562,0.1992,3085.9,3084.5,0.4824]
[1763559577758,0.405504,3085.8,3084.5,0.4824]
[1763559577962,0.405504,3085.8,3084.6,0.24809076]
[1763559578166,0.405504,3085.8,3084.6,4.39699483]
[1763559578359,0.886104,3085.8,3084.6,0.24809076]
[1763559578561,0.886104,3085.8,3083.9,0.001]
[1763559578885,0.405504,3085.6,3083.9,0.001]
[1763559579082,0.70336812,3085.6,3083.9,0.001]
[1763559579288,0.405504,3085.4,3083.9,0.001]
[1763559579458,0.405504,3085.2,3083.9,0.001]
[1763559579649,1.55081714,3085.2,3083.9,0.001]
[1763559579956,0.405504,3085.0,3083.9,0.001]
[1763559580161,1.38950265,3085.0,3083.9,0.001]
[1763559580347,0.405504,3084.8,3083.9,0.001]
[1763559580759,0.405504,3084.0,3083.9,0.001]
[1763559581168,0.50901748,3084.0,3083.9,0.001]
[1763559581450,1.85212148,3084.0,3083.9,0.001]
[1763559581650,1.52831615,3084.0,3083.9,0.001]
[1763559581847,2.21554242,3084.0,3083.9,0.001]
[1763559582653,1.31249664,3083.9,3082.7,0.003]
[1763559582848,0.603804,3082.8,3082.7,0.003]
[1763559583388,1.084404,3082.8,3082.7,0.003]